bitfinex-derivatives/quotes_ETHF0:USTF0_20251117
["timestamp","ask_amount","ask_price","bid_price","bid_amount"]
[1763392747869,0.00481974,3112.1,3111.0,0.00481974]
[1763392748065,3.21261974,3112.1,3111.0,0.00481974]
[1763392748266,0.00481974,3112.1,3111.4,3.72891]
[1763392748561,0.00481974,3112.1,3111.9,0.52103]
[1763392749169,0.00481974,3112.1,3111.4,3.2078]
[1763392749368,0.00481974,3112.1,3111.7,0.52107]
[1763392749561,0.00481974,3112.1,3111.4,3.2078]
[1763392749864,0.00481974,3112.1,3111.0,0.52599974]
[1763392749865,3.2078,3111.7,3111.0,0.00481974]
[1763392750564,3.2078,3111.7,3111.0,0.52600974]
[1763392750766,3.21261974,3112.1,3111.4,3.2078]
[1763392750961,0.00481974,3112.1,3111.9,3.72883]
[1763392751169,0.00481974,3112.1,3112.0,3.2078]
[1763392751359,0.00481974,3112.1,3111.4,3.2078]
[1763392751360,0.52582974,3112.1,3111.4,3.2078]
[1763392751669,0.52582974,3112.1,3111.8,0.52105]
[1763392751670,0.00481974,3112.1,3111.8,0.52105]
[1763392751864,0.00481974,3112.1,3111.0,0.00481974]
[1763392751865,3.21261974,3112.1,3111.1,3.72897]
[1763392752072,0.5211,3111.6,3111.1,3.2078]
[1763392752264,3.21261974,3112.1,3111.1,3.2078]
[1763392752459,0.52107,3111.8,3111.3,0.52114]
[1763392752768,3.2078,3111.6,3111.0,3.21261974]
[1763392752971,3.72896,3111.2,3111.0,0.00481974]
[1763392753162,2.6044129,3111.7,3111.0,0.00481974]
[1763392753363,0.52118,3111.1,3111.0,0.00481974]
[1763392753561,3.2078,3111.3,3110.2,3.29844158]
[1763392753772,3.2078,3110.3,3110.2,0.09064158]
[1763392753959,3.2078,3110.3,3108.7,0.0321683]
[1763392753960,3.2078,3110.3,3108.8,3.2078]
[1763392754164,3.2078,3109.5,3108.8,0.52156]
[1763392754360,3.2078,3109.9,3109.2,3.72929]
[1763392754564,3.21519362,3109.9,3109.2,0.00780243]
[1763392754771,3.2078,3109.5,3109.2,0.00780243]
[1763392755471,2.6044129,3109.4,3109.2,0.00780243]
[1763392755672,6.0,3109.4,3108.7,0.0321683]
[1763392755970,3.2078,3109.5,3107.0,0.5367]
[1763392755971,3.2078,3109.0,3107.8,0.52173]
[1763392756178,3.2078,3108.5,3107.7,3.2078]
[1763392756472,3.2078,3108.5,3107.6,3.2078]
[1763392756668,0.8317,3108.0,3107.7,0.00319986]
[1763392756877,3.2078,3107.8,3107.7,0.00319986]
[1763392757066,3.2078,3108.3,3107.7,0.00319986]
[1763392757269,0.00481974,3108.4,3107.7,0.00319986]
[1763392757771,0.00481974,3108.4,3107.8,3.2078]
[1763392757973,3.2078,3109.8,3108.3,3.2078]
[1763392758273,3.2078,3109.7,3108.9,3.2078]
[1763392758571,3.2078,3109.7,3108.0,0.8976]
[1763392758572,3.2078,3109.3,3109.1,0.5215]
[1763392758881,3.2078,3109.8,3109.2,3.2078]
[1763392759074,3.21261974,3109.8,3109.2,3.2078]
[1763392759268,3.21261974,3109.8,3109.6,3.72922]
[1763392759269,0.00481974,3109.8,3109.6,3.72922]
[1763392759475,3.2078,3110.7,3109.6,3.2078]
[1763392759675,3.2078,3110.3,3109.4,0.00481974]
[1763392759874,3.2078,3110.7,3109.6,3.2078]
[1763392760069,3.2078,3110.2,3109.4,0.00481974]
[1763392760272,3.2078,3109.7,3109.4,0.00481974]
[1763392760576,0.00361867,3109.7,3109.4,0.00481974]
[1763392760978,0.00361867,3109.7,3109.5,3.72923]
[1763392761175,3.2078,3110.5,3109.5,3.72923]
[1763392761176,3.2078,3110.5,3109.5,9.2078]
[1763392761476,3.2078,3110.9,3110.4,0.52129]
[1763392761775,3.2078,3110.9,3109.9,3.2078]
[1763392761975,3.2078,3111.3,3110.3,3.2078]
[1763392762176,3.2078,3111.3,3110.6,0.52125]
[1763392762177,0.00481974,3110.7,3110.6,0.52125]
[1763392762567,0.00481974,3110.7,3109.9,0.00409365]
[1763392762875,3.2078,3110.1,3109.4,3.21261974]
[1763392763080,3.2078,3109.7,3108.1,3.2078]
[1763392763373,3.2078,3109.3,3108.1,3.2078]
[1763392763575,3.2078,3108.9,3108.1,3.2078]
[1763392763967,3.2078,3108.9,3108.1,3.21196296]
[1763392764172,3.2078,3108.4,3108.2,0.00481974]
[1763392764375,3.21126432,3108.4,3108.2,0.00481974]
[1763392765681,0.00481974,3108.8,3108.3,3.2078]
[1763392766072,0.00481974,3108.8,3108.2,0.00481974]
[1763392766272,0.00481974,3108.8,3108.2,0.52647974]
[1763392766574,3.2078,3109.3,3108.3,3.2078]
[1763392766776,3.210412,3109.3,3108.7,3.2078]
[1763392767173,3.210412,3109.3,3108.3,3.2078]
[1763392767381,3.210412,3109.3,3108.5,0.52161]
[1763392767573,3.210412,3109.3,3108.3,3.2078]
[1763392767776,2.60923264,3109.2,3108.3,3.72944]
[1763392767978,0.00481974,3109.2,3108.4,0.52162]
[1763392768277,0.00481974,3109.2,3108.3,3.72943]
[1763392768477,0.00481974,3109.2,3108.3,3.2078]
[1763392768781,3.2078,3108.9,3108.3,3.2078]
[1763392769087,3.2078,3108.5,3108.2,0.00481974]
[1763392769383,3.2078,3108.5,3108.2,1.974e-05]
[1763392769583,2.6044129,3108.4,3107.5,3.2078]
[1763392769782,3.2078,3108.1,3107.5,3.2078]
[1763392770678,3.2078,3108.1,3107.5,3.21569043]
[1763392770879,3.2078,3108.4,3107.9,3.2078]
[1763392771186,3.2078,3108.0,3107.5,0.00789043]
[1763392771589,0.8734,3107.5,3107.2,2.52094831]
[1763392771789,2.6044129,3107.9,3107.1,3.2078]
[1763392772085,3.2078,3107.7,3106.8,0.52189]
[1763392772281,3.2078,3107.3,3106.3,3.2078]
[1763392772484,3.2078,3107.3,3106.5,0.52194]
[1763392772680,0.00482827,3107.2,3106.6,0.00482827]
[1763392772885,3.2078,3106.8,3106.6,0.00482827]
[1763392773086,3.21044867,3106.8,3106.5,0.00289931]
[1763392773287,0.00264867,3106.8,3106.6,0.52192]
[1763392773582,0.00482827,3107.2,3106.7,3.2078]
[1763392773784,0.00482827,3107.2,3107.0,0.52186]
[1763392773981,0.00482827,3107.2,3107.1,3.2078]
[1763392774183,3.2078,3108.1,3107.1,12.4262]
[1763392774480,3.2078,3108.6,3108.0,3.2078]
[1763392774678,3.21172417,3108.6,3107.2,3.2078]
[1763392774877,3.21172417,3108.6,3108.4,0.52162]
[1763392774878,0.00392417,3108.6,3108.4,0.52162]
[1763392775285,0.00392417,3108.6,3107.9,3.2078]
[1763392775482,3.2078,3108.2,3107.3,3.2078]
[1763392775784,3.2078,3107.8,3106.9,3.2078]
[1763392775991,3.2078,3108.2,3106.9,3.2078]
[1763392776190,3.2078,3108.2,3107.4,3.72959]
[1763392776485,0.00392417,3108.6,3106.8,3.21101977]
[1763392776486,3.2078,3107.8,3106.8,3.21101977]
[1763392776680,3.2078,3107.8,3107.3,0.52181]
[1763392777089,3.2078,3108.3,3107.6,0.52176]
[1763392777386,0.00392417,3108.6,3108.5,0.52161]
[1763392777689,3.2078,3109.4,3108.2,3.2078]
[1763392777982,3.2078,3109.4,3108.3,3.2078]
[1763392778187,3.2078,3109.8,3109.1,3.2078]
[1763392778576,3.2078,3109.4,3109.1,0.00715917]
[1763392778891,3.2078,3109.4,3107.9,0.52171]
[1763392779186,3.2078,3108.9,3108.0,3.72949]
[1763392779391,3.2078,3108.9,3108.2,0.52165]
[1763392779591,3.2078,3108.9,3108.0,3.2078]
[1763392779592,0.00304531,3109.8,3108.7,0.52156]
[1763392779886,3.2078,3109.3,3108.9,0.00482827]
[1763392780876,3.2078,3109.3,3107.9,3.2078]
[1763392781087,3.2078,3108.9,3107.9,3.2078]
[1763392781392,3.2078,3109.3,3108.3,3.2078]
[1763392781589,0.00482827,3109.6,3109.2,0.5215]
[1763392781789,0.00482827,3109.6,3108.7,3.2078]
[1763392781984,0.00482827,3109.6,3109.2,0.00369667]
[1763392782282,3.2078,3109.3,3109.2,0.00369667]
[1763392782487,3.2078,3109.3,3108.3,3.2078]
[1763392782488,3.92703612,3109.3,3108.3,3.2078]
[1763392782686,0.71923612,3109.2,3108.3,3.2078]
[1763392782984,0.00482827,3109.6,3108.7,3.2078]
[1763392783192,0.00482827,3109.6,3109.1,3.2078]
[1763392783494,0.00482827,3109.6,3109.3,0.52147]
[1763392783785,0.00482827,3109.6,3109.1,3.21193999]
[1763392783990,3.2078,3109.4,3109.1,0.00413999]
[1763392784187,0.00482827,3109.6,3109.3,0.52147]
[1763392784394,0.00482827,3109.6,3109.1,3.21193999]
[1763392784582,0.00482827,3109.6,3109.1,0.00413999]
[1763392784784,3.2078,3109.2,3109.1,0.00413999]
[1763392784991,3.21262827,3109.6,3109.1,0.00413999]
[1763392785295,3.2078,3109.2,3109.1,0.00413999]
[1763392785494,3.9278368,3109.2,3108.0,3.2078]
[1763392785693,3.2078,3108.8,3108.2,0.52166]
[1763392785888,3.2078,3108.8,3108.0,3.72949]
[1763392786194,3.2078,3108.8,3108.0,3.2078]
[1763392786393,3.2078,3108.8,3108.0,0.00235846]
[1763392786584,3.2078,3108.8,3108.0,3.21015846]
[1763392787081,3.2078,3109.2,3108.0,3.21015846]
[1763392787281,3.2078,3109.2,3109.1,0.52151]
[1763392787494,3.2078,3109.2,3108.8,3.2078]
[1763392788096,3.2078,3109.2,3108.8,3.72935]
[1763392788306,3.2078,3109.2,3108.4,3.2078]
[1763392788895,0.72095599,3109.1,3108.4,3.2078]
[1763392789094,3.2078,3109.2,3108.4,3.2078]
[1763392789292,0.00482827,3109.6,3108.8,3.2078]
[1763392789687,0.00482827,3109.6,3109.1,0.52151]
[1763392790093,0.00482827,3109.6,3109.5,0.52145]
[1763392790498,0.00482827,3109.6,3109.3,3.2078]
[1763392790797,0.00482827,3109.6,3108.8,3.2078]
[1763392790798,3.2078,3109.5,3108.8,3.2078]
[1763392790993,0.72166958,3109.4,3108.8,3.2078]
[1763392791594,3.2078,3109.1,3108.1,40.8]
[1763392791795,3.2078,3109.1,3108.0,3.21015846]
[1763392792001,4.32436785,3109.6,3108.9,0.52155]
[1763392792195,4.32436785,3109.6,3109.0,0.52153]
[1763392792196,0.72119434,3109.5,3109.0,0.52153]
[1763392792397,0.72119434,3109.5,3108.4,3.2078]
[1763392792799,0.72119434,3109.5,3108.8,3.2078]
[1763392793505,3.21262827,3109.6,3108.8,3.2078]
[1763392794000,0.7215006,3109.5,3108.8,3.2078]
[1763392794202,0.7215006,3109.5,3108.8,3.72936]
[1763392794406,3.21262827,3109.6,3108.8,3.2078]
[1763392794597,0.00304531,3109.8,3109.3,3.2078]
[1763392795003,0.00304531,3109.8,3109.6,0.52142]
[1763392795198,0.00304531,3109.8,3109.3,3.2078]
[1763392795501,0.00304531,3109.8,3109.7,3.72921]
[1763392795703,4.531e-05,3109.8,3109.7,3.72921]
[1763392796010,4.531e-05,3109.8,3109.7,3.2078]
[1763392796204,3.2078,3110.4,3110.3,0.52131]
[1763392796401,1.11173958,3111.3,3110.1,3.2078]
[1763392796608,3.2078,3110.9,3110.1,3.2078]
[1763392796801,3.2078,3111.3,3110.1,3.2078]
[1763392797001,3.2078,3110.9,3110.3,0.52131]
[1763392797206,3.2152443,3110.9,3110.3,0.00392358]
[1763392797809,3.2078,3110.4,3110.3,0.00392358]
[1763392798909,3.2078,3110.8,3110.3,0.00392358]
[1763392799309,3.2078,3110.8,3110.4,0.52129]
[1763392799498,3.2078,3110.8,3110.3,3.21172358]
[1763392799702,3.2078,3110.8,3110.6,0.52124]
[1763392799902,3.2078,3111.8,3110.7,3.2078]
[1763392800215,3.2078,3111.4,3110.4,3.2078]
[1763392800710,3.2078,3110.9,3110.3,0.00392358]
[1763392800908,0.00243692,3110.9,3110.7,0.52124]
[1763392801209,0.00243692,3110.9,3110.6,3.2078]
[1763392801210,3.2078,3113.0,3111.0,0.8255]
[1763392801413,3.2078,3113.4,3112.6,3.2078]
[1763392801707,0.0346,3113.7,3110.8,3.66894824]
[1763392801708,3.9928,3113.0,3111.5,3.2078]
[1763392801908,3.2078,3111.6,3110.5,3.2078]
[1763392802100,3.2078,3110.8,3110.7,0.00482043]
[1763392802301,3.2078,3110.8,3109.4,2.52495397]
[1763392802302,3.2078,3110.8,3109.6,3.2078]
[1763392802508,3.2078,3110.4,3109.4,2.52495397]
[1763392802709,3.2078,3110.4,3109.2,3.2078]
[1763392803007,0.785,3111.0,3108.4,40.8]
[1763392803008,3.2078,3110.0,3108.4,40.8]
[1763392803201,3.2078,3109.9,3108.8,3.2078]
[1763392803408,3.2078,3109.4,3108.9,0.00482043]
[1763392803711,3.2078,3109.0,3108.9,0.00482043]
[1763392803905,3.2078,3109.0,3108.4,0.00267488]
[1763392804112,3.2078,3108.5,3108.4,0.00267488]
[1763392804410,3.2078,3109.3,3108.5,0.52161]
[1763392804604,0.00347967,3109.4,3108.6,3.2078]
[1763392804816,0.00482043,3109.5,3109.0,3.2078]
[1763392805008,3.2078,3110.1,3109.4,3.2078]
[1763392805205,3.2078,3110.5,3109.8,3.2078]
[1763392805509,3.2078,3110.5,3109.7,3.7292]
[1763392805706,3.21058934,3110.5,3109.7,3.2078]
[1763392806019,0.90659,3111.0,3110.5,0.52127]
[1763392806208,0.90659,3111.0,3110.5,3.2078]
[1763392806612,3.2078,3112.3,3110.9,3.2078]
[1763392806809,3.2078,3112.3,3111.4,0.52112]
[1763392807008,0.00482043,3112.2,3111.5,0.00482043]
[1763392807313,3.9928,3112.0,3111.5,0.00482043]
[1763392807821,3.2078,3111.6,3110.4,3.2078]
[1763392808311,3.2078,3111.6,3110.8,3.2078]
[1763392808714,0.00482043,3112.2,3111.4,3.2078]
[1763392808916,3.2078,3113.3,3112.1,3.2078]
[1763392809120,3.2078,3113.3,3112.6,0.52092]
[1763392809314,3.2078,3113.3,3112.1,3.2078]
[1763392809620,3.2078,3113.4,3112.9,0.52087]
[1763392809914,3.2078,3113.4,3112.5,3.2078]
[1763392809915,0.00350248,3113.4,3113.3,3.2078]
[1763392810122,0.00350248,3113.4,3113.3,3.21029934]
[1763392810421,0.00376103,3113.7,3113.3,0.00249934]
[1763392810715,3.2078,3113.4,3113.3,0.00249934]
[1763392811221,3.21196601,3113.4,3113.3,0.00249934]
[1763392812022,0.785,3113.0,3111.8,3.2078]
[1763392812216,3.2078,3112.3,3111.8,3.2078]
[1763392812621,3.2078,3112.7,3112.4,0.52096]
[1763392812821,3.2078,3112.7,3110.5,2.854]
[1763392812822,3.2078,3113.1,3112.3,3.2078]
[1763392813023,0.00482043,3113.0,3112.9,0.52087]
[1763392813225,0.00482043,3113.0,3112.7,3.2078]
[1763392813423,0.00482043,3113.0,3112.8,0.52088]
[1763392813726,3.2078,3114.5,3113.8,0.52072]
[1763392814021,3.2078,3115.3,3114.1,3.2078]
[1763392814417,0.785,3115.2,3114.1,3.2078]
[1763392814621,3.2078,3114.8,3114.3,0.00482043]
[1763392814821,0.00482043,3115.0,3114.3,0.00482043]
[1763392815021,3.2078,3114.7,3114.3,0.00482043]
[1763392815224,3.2078,3114.7,3113.1,0.52084]
[1763392815414,3.2078,3114.1,3113.1,0.52084]
[1763392815724,3.2078,3113.6,3112.9,3.72867]
[1763392815918,3.2078,3114.0,3112.9,3.2078]
[1763392816118,3.9928,3114.0,3112.9,3.2078]
[1763392816322,3.2078,3113.6,3113.1,0.00482043]
[1763392816924,3.2078,3114.1,3113.2,3.72862]
[1763392817117,3.2078,3114.1,3113.7,3.2078]
[1763392817616,3.2078,3114.1,3113.5,0.52077]
[1763392817617,3.2078,3114.1,3113.5,0.52076]
[1763392817825,3.2078,3114.6,3113.7,0.52074]
[1763392818026,3.2078,3114.6,3114.0,3.2078]
[1763392818422,0.00482043,3115.0,3114.0,3.2078]
[1763392818618,3.2078,3114.7,3114.0,3.2078]
[1763392819024,2.6044129,3114.9,3114.0,3.2078]
[1763392819222,0.00482043,3115.0,3114.0,3.2078]
[1763392819523,3.2078,3114.7,3113.8,3.2078]
[1763392819729,0.7544,3114.1,3113.1,0.00482043]
[1763392819919,3.2078,3113.4,3112.9,2.37508884]
[1763392820420,3.2078,3113.9,3113.0,0.52086]
[1763392820622,0.7544,3114.1,3113.3,3.2078]
[1763392820826,0.00482043,3114.0,3113.8,0.52072]
[1763392821124,3.21100325,3115.2,3114.7,0.52056]
[1763392821325,3.21100325,3115.2,3114.7,0.00408922]
[1763392821915,3.2078,3115.0,3114.7,0.00408922]
[1763392823420,0.00802368,3115.2,3114.7,0.00408922]
[1763392823820,0.00802368,3115.2,3115.0,0.52052]
[1763392824025,3.2078,3115.8,3115.7,0.52041]
[1763392824230,3.2078,3116.7,3115.6,3.2078]
[1763392824425,3.2078,3116.7,3116.0,3.2078]
[1763392824618,0.785,3117.4,3114.7,0.00408922]
[1763392824619,3.2078,3116.1,3114.7,0.00408922]
[1763392824820,3.2078,3115.3,3114.7,40.80408922]
[1763392825028,3.21131357,3115.3,3114.7,0.00408922]
[1763392825226,3.216134,3115.3,3114.7,0.00890965]
[1763392825428,0.008334,3115.3,3114.8,3.2078]
[1763392825728,0.008334,3115.3,3114.7,0.00890965]
[1763392826033,3.216134,3115.3,3114.7,3.21670965]
[1763392826236,3.216134,3115.3,3115.2,3.2078]
[1763392826237,0.008334,3115.3,3115.2,3.2078]
[1763392826720,3.2078,3116.2,3115.2,3.2078]
[1763392826922,3.2078,3116.2,3114.7,0.00890965]
[1763392826923,3.2078,3116.6,3115.8,0.52039]
[1763392827224,3.2078,3116.6,3116.0,3.2078]
[1763392827420,3.2078,3117.0,3116.0,3.2078]
[1763392827620,3.2078,3117.0,3116.2,0.52032]
[1763392827818,3.2078,3116.5,3116.2,0.00482043]
[1763392828021,0.00321628,3116.8,3116.2,0.00482043]
[1763392828216,0.00321628,3116.8,3116.2,0.52514043]
[1763392828427,0.00321628,3116.8,3116.2,0.00482043]
[1763392828929,3.2078,3116.5,3116.2,0.00482043]
[1763392829529,1.14633958,3118.7,3117.0,3.2078]
[1763392829735,1.14633958,3118.7,3116.4,0.4197]
[1763392829736,0.0346,3118.7,3118.6,3.2078]
[1763392830430,0.03809743,3118.7,3118.6,3.21022487]
[1763392831931,0.51976,3119.6,3118.6,3.21022487]
[1763392832229,0.51976,3119.6,3119.5,3.2078]
[1763392832424,0.51972,3119.9,3119.5,3.2078]
[1763392832732,0.819,3121.2,3119.5,3.2078]
[1763392832733,0.51974,3119.7,3119.5,3.2078]
[1763392832933,0.00405095,3119.7,3119.5,3.2078]
[1763392833136,0.51976,3119.6,3119.5,3.2078]
[1763392833526,0.00405095,3119.7,3119.5,3.2078]
[1763392833724,0.52380095,3119.7,3119.5,3.2078]
[1763392834125,0.00405095,3119.7,3119.5,3.2078]
[1763392834424,0.52380095,3119.7,3119.5,3.2078]
[1763392834932,0.00405095,3119.7,3119.5,3.2078]
[1763392835132,3.2078,3122.0,3119.9,3.2078]
[1763392835332,3.2078,3122.6,3121.5,3.2078]
[1763392835531,13.77794168,3122.7,3119.6,0.8142]
[1763392835532,2.6044129,3122.1,3119.6,0.8142]
[1763392835835,0.51933,3122.2,3122.0,3.2078]
[1763392836033,14.29719168,3122.7,3122.0,3.2078]
[1763392836236,13.78051906,3122.7,3122.6,3.2078]
[1763392836728,13.78051906,3122.7,3122.2,3.2078]
[1763392837234,0.5193,3122.4,3122.2,3.2078]
[1763392837430,0.0346,3123.7,3122.2,9.2078]
[1763392837634,0.0346,3123.7,3123.4,3.2078]
[1763392838038,0.0346,3123.7,3123.2,0.00480469]
[1763392838226,6.0346,3123.7,3122.9,3.2078]
[1763392838536,6.0346,3123.7,3122.0,0.00310314]
[1763392838537,3.2078,3123.0,3122.0,0.00310314]
[1763392838735,3.2078,3122.6,3122.0,0.00310314]
[1763392838938,3.2078,3123.0,3122.3,3.2078]
[1763392839136,3.2078,3123.0,3122.0,0.00310314]
[1763392839544,3.2078,3122.6,3122.2,0.00480469]
[1763392839741,0.7015,3122.4,3121.2,3.2078]
[1763392840130,0.7015,3122.4,3121.6,3.2078]
[1763392840444,3.2078,3122.5,3121.6,3.2078]
[1763392840939,0.00480469,3122.4,3121.7,0.00480469]
[1763392841134,3.2078,3122.0,3121.7,0.00480469]
[1763392841337,3.2078,3122.0,3120.6,3.2078]
[1763392841538,3.2078,3122.0,3121.0,3.2078]
[1763392841735,2.6044129,3121.9,3120.6,3.2078]
[1763392841933,3.2078,3121.3,3120.6,3.2078]
[1763392842135,3.2078,3121.7,3120.6,3.2078]
[1763392842329,0.819,3121.2,3120.8,4.69e-06]
[1763392842529,3.2078,3120.9,3119.5,0.30554094]
[1763392842741,3.2078,3119.7,3118.2,3.2078]
[1763392842941,3.2078,3119.3,3118.2,3.2078]
[1763392843135,3.2078,3118.8,3117.7,3.2078]
[1763392843344,3.2078,3118.7,3117.7,3.2078]
[1763392843533,3.2078,3119.2,3117.7,3.2078]
[1763392843729,0.00480469,3118.5,3118.1,3.2078]
[1763392843935,0.00720012,3118.5,3118.2,3.2078]
[1763392844245,0.00720012,3118.5,3117.9,0.00480469]
[1763392844744,3.21500012,3118.5,3117.9,0.00480469]
[1763392844935,3.2078,3118.1,3117.9,0.00480469]
[1763392845534,3.2078,3118.1,3117.7,0.00311889]
[1763392845733,0.00720012,3118.5,3117.7,0.00311889]
[1763392846034,3.2078,3118.2,3117.7,0.00311889]
[1763392846536,0.00720012,3118.5,3117.9,3.2078]
[1763392846741,3.2078,3118.9,3118.3,3.2078]
[1763392847045,3.2078,3118.9,3118.3,3.72776]
[1763392847340,3.2078,3118.9,3118.3,3.2078]
[1763392847841,3.21529704,3118.9,3118.3,3.2078]
[1763392848348,0.00749704,3118.9,3118.8,3.2078]
[1763392848541,0.819,3121.2,3118.8,4.0259]
[1763392848542,3.2078,3120.2,3118.8,4.0259]
[1763392848943,3.2078,3120.2,3119.0,0.51985]
[1763392849242,3.2078,3120.1,3119.2,3.2078]
[1763392849443,3.2078,3120.5,3119.6,3.2078]
[1763392849641,3.2078,3120.1,3119.6,3.2078]
[1763392849847,3.2078,3120.1,3119.7,0.00480469]
[1763392850343,2.6044129,3120.0,3118.9,3.2078]
[1763392850538,2.6044129,3120.0,3119.0,0.51985]
[1763392850733,0.00480469,3120.4,3119.5,3.2078]
[1763392850938,3.2078,3120.1,3119.6,3.2078]
[1763392851450,0.00480469,3120.4,3119.7,0.51973]
[1763392851639,0.00480469,3120.4,3120.0,3.2078]
[1763392851843,0.00480469,3120.4,3120.2,0.51965]
[1763392852146,3.2078,3121.2,3120.3,3.72743]
[1763392852341,3.2078,3121.2,3120.2,0.51966]
[1763392852543,3.2078,3121.2,3120.0,0.88782793]
[1763392852746,3.2078,3120.8,3120.2,0.51965]
[1763392852939,3.2078,3122.6,3120.4,3.2078]
[1763392853139,3.2078,3122.9,3121.8,3.2078]
[1763392853347,3.2078,3122.5,3121.8,3.2078]
[1763392853651,3.2078,3122.5,3121.4,3.2078]
[1763392853944,3.2078,3122.1,3121.2,0.00480469]
[1763392854345,3.2078,3121.7,3121.2,0.00480469]
[1763392855048,2.6044129,3121.6,3121.2,0.00480469]
[1763392855238,3.2078,3122.1,3121.2,0.00480469]
[1763392855644,3.2078,3122.1,3121.3,3.2078]
[1763392856644,3.2078,3121.7,3121.2,0.00480469]
[1763392857048,3.2078,3121.3,3120.5,3.2078]
[1763392857349,0.8583,3121.2,3120.1,3.2078]
[1763392857548,0.8583,3121.2,3120.1,3.72747]
[1763392857753,3.2078,3120.9,3120.1,3.2078]
[1763392858065,0.00480469,3120.8,3120.2,0.00480469]
[1763392858245,0.00480469,3120.8,3120.5,3.2078]
[1763392858552,3.2078,3120.6,3120.0,0.00292793]
[1763392858751,3.2078,3120.1,3118.7,0.5199]
[1763392858951,3.2078,3120.0,3119.1,3.2078]
[1763392859157,5.8122129,3120.0,3119.1,3.2078]
[1763392859658,0.00480469,3119.9,3119.2,0.00325562]
[1763392860151,3.2078,3119.6,3119.2,0.00325562]
[1763392860346,1.11173958,3119.4,3117.7,3.2078]
[1763392860547,3.2078,3118.6,3117.6,3.2078]
[1763392860747,2.6044129,3119.3,3118.4,3.2078]
[1763392860943,3.2078,3119.4,3117.7,3.2078]
[1763392861152,3.2078,3119.4,3118.3,3.2078]
[1763392861351,3.2078,3119.0,3118.3,3.21072462]
[1763392861545,0.00480469,3119.2,3118.3,3.73069462]
[1763392861748,0.00480469,3119.2,3118.3,3.21072462]
[1763392861956,3.2078,3118.6,3118.3,0.00292462]
[1763392862249,3.2078,3118.5,3118.3,0.00292462]
[1763392862451,4.0661,3118.5,3116.5,3.2078]
[1763392862650,3.2078,3117.7,3116.5,3.72806]
[1763392862859,3.4627129,3118.5,3116.5,3.2078]
[1763392862860,0.00480469,3117.4,3116.5,3.2078]
[1763392863055,3.2078,3117.1,3116.5,3.2078]
[1763392863243,3.2078,3117.1,3115.2,0.8849]
[1763392863244,3.2078,3117.1,3115.7,3.2078]
[1763392863450,3.2078,3116.5,3115.7,3.21063404]
[1763392864050,3.2078,3116.1,3115.7,0.00283404]
[1763392865152,3.2078,3117.0,3115.7,3.73103404]
[1763392865356,3.2078,3116.5,3115.7,3.21063404]
[1763392866248,2.6044129,3116.4,3115.7,3.21063404]
[1763392866447,3.2078,3117.0,3115.7,3.21063404]
[1763392866655,3.2078,3117.0,3116.3,0.8849]
[1763392866862,0.0033026,3117.1,3116.5,3.2078]
[1763392867160,3.2078,3118.2,3116.9,3.2078]
[1763392867362,17.38472296,3118.7,3117.4,3.2078]
[1763392867554,3.2078,3118.3,3117.4,4.61281]
[1763392867856,3.2078,3117.5,3116.3,0.8849]
[1763392868051,3.2078,3117.1,3116.6,0.00481263]
[1763392868753,3.2078,3117.1,3116.6,0.52506263]
[1763392868955,3.2078,3117.1,3116.6,0.00481263]
[1763392869359,3.2078,3117.1,3116.8,0.52022]
[1763392869554,0.00481263,3117.2,3116.6,0.00481263]
[1763392869948,0.00481263,3117.2,3117.0,0.52018]
[1763392870150,0.00297838,3117.5,3117.1,0.52016]
[1763392870354,0.00297838,3117.5,3116.8,3.2078]
[1763392870556,0.00297838,3117.5,3117.4,0.52012]
[1763392870763,3.2078,3118.4,3118.0,0.52002]
[1763392871056,3.2078,3118.4,3117.7,3.2078]
[1763392871368,3.2078,3120.0,3118.3,3.2078]
[1763392871662,3.2078,3120.0,3117.4,4.0913]
[1763392871663,3.2078,3120.4,3119.4,3.2078]
[1763392871863,0.00395631,3120.4,3120.2,0.51965]
[1763392872158,0.00395631,3120.4,3119.4,0.00287972]
[1763392872357,3.2078,3120.3,3119.5,3.2078]
[1763392872565,0.00481263,3120.2,3119.6,0.00481263]
[1763392872754,3.2078,3120.1,3119.6,0.00481263]
[1763392873062,3.2078,3119.7,3118.4,3.2078]
[1763392873253,3.2078,3120.0,3118.6,0.51991]
[1763392873457,2.6044129,3120.0,3119.2,0.51982]
[1763392873759,3.2078,3120.1,3119.1,3.2078]
[1763392873957,3.2078,3120.1,3119.3,0.00481263]
[1763392874158,3.2078,3119.7,3119.3,0.00481263]
[1763392874351,3.2078,3120.1,3119.3,0.00481263]
[1763392875365,3.2078,3120.1,3119.3,0.52462263]
[1763392875562,3.2078,3120.1,3119.5,3.2078]
[1763392875963,3.2078,3119.6,3119.1,0.00253074]
[1763392876158,3.2078,3119.2,3118.2,3.2078]
[1763392876757,3.2078,3119.2,3116.2,11.553]
[1763392876758,3.2078,3118.5,3117.5,3.2078]
[1763392877063,3.2078,3118.0,3117.7,0.00481263]
[1763392877253,3.21047397,3118.0,3117.7,0.00481263]
[1763392877461,3.21047397,3118.0,3117.5,0.00297064]
[1763392877969,3.21047397,3118.0,3116.9,3.2078]
[1763392877970,2.6044129,3117.9,3117.0,0.52018]
[1763392878271,3.21047397,3118.0,3116.9,3.2078]
[1763392878768,0.00267397,3118.0,3117.5,3.2078]
[1763392878960,0.00267397,3118.0,3117.9,3.2078]
[1763392880272,3.21047397,3118.0,3117.1,3.2078]
[1763392880458,3.21047397,3118.0,3116.9,0.00234699]
[1763392880459,3.2078,3117.5,3116.9,0.00234699]
[1763392880660,3.2078,3117.1,3116.9,0.00234699]
[1763392881066,3.2078,3117.1,3116.3,3.2078]
[1763392881369,3.2078,3117.1,3116.5,0.52027]
[1763392881563,3.2078,3117.1,3116.3,3.2078]
[1763392882262,3.2078,3117.1,3116.5,0.52027]
[1763392882566,3.2078,3117.1,3116.4,0.8557]
[1763392882965,3.2078,3117.7,3116.8,3.2078]
[1763392884266,3.2078,3117.7,3117.5,0.52011]